bitfinex-derivatives/quotes_BTCF0:USTF0_20250509
["timestamp","ask_amount","ask_price","bid_price","bid_amount"]
[1746783662332,0.344709,102820.0,102810.0,0.57543376]
[1746783662530,0.344709,102820.0,102810.0,0.57643376]
[1746783662836,0.291809,102820.0,102810.0,0.57643376]
[1746783663635,0.344709,102820.0,102810.0,0.69752658]
[1746783663831,0.344709,102820.0,102810.0,0.57643376]
[1746783664031,0.6525695,102830.0,102820.0,0.1945244]
[1746783664230,0.3446695,102830.0,102820.0,0.48131722]
[1746783664435,0.3446695,102830.0,102820.0,0.54131722]
[1746783664637,0.0529,102830.0,102820.0,0.63857929]
[1746783664836,0.44242048,102850.0,102840.0,0.1944865]
[1746783665134,0.44526505,102850.0,102840.0,0.39557932]
[1746783665335,0.44526505,102850.0,102840.0,0.3830865]
[1746783665536,0.44526505,102850.0,102840.0,0.27585261]
[1746783665727,0.86086505,102850.0,102840.0,0.27585261]
[1746783666134,0.86186505,102850.0,102840.0,0.27585261]
[1746783666740,0.86186505,102850.0,102840.0,0.27685261]
[1746783667842,0.86086505,102850.0,102840.0,0.47133911]
[1746783668038,0.86086505,102850.0,102840.0,0.47233911]
[1746783668233,0.41614457,102850.0,102840.0,0.59343193]
[1746783668541,0.55721217,102850.0,102840.0,0.61343193]
[1746783668842,0.19641217,102850.0,102840.0,0.97423193]
[1746783669837,0.00194457,102850.0,102840.0,0.61343193]
[1746783670046,0.00194457,102850.0,102840.0,1.24423193]
[1746783670233,0.19641217,102850.0,102840.0,1.24423193]
[1746783670435,0.00194457,102850.0,102840.0,1.24423193]
[1746783670634,0.19641217,102850.0,102840.0,1.24423193]
[1746783670830,0.00194457,102850.0,102840.0,1.24423193]
[1746783671035,0.19641217,102850.0,102840.0,1.24423193]
[1746783671845,0.00194457,102850.0,102840.0,1.24423193]
[1746783672042,0.00194457,102850.0,102840.0,1.60255675]
[1746783672347,0.00108101,102860.0,102850.0,0.31556042]
[1746783672647,0.07797427,102870.0,102860.0,0.1944487]
[1746783672835,0.07797427,102870.0,102860.0,1.55683434]
[1746783673038,0.07797427,102870.0,102860.0,3.03295752]
[1746783673243,0.07797427,102870.0,102860.0,2.93295752]
[1746783673433,0.07797427,102870.0,102860.0,3.03017231]
[1746783673634,0.004,102870.0,102860.0,3.03017231]
[1746783673932,0.004,102870.0,102860.0,3.03117231]
[1746783674338,0.004,102870.0,102860.0,2.91007949]
[1746783674536,0.004,102870.0,102860.0,3.03117231]
[1746783674839,0.004,102870.0,102860.0,3.13117231]
[1746783676841,0.0569,102890.0,102880.0,0.1944109]
[1746783677145,0.0569,102890.0,102880.0,1.00630372]
[1746783677340,0.0569,102890.0,102880.0,0.98970372]
[1746783677548,0.0569,102890.0,102880.0,2.51691851]
[1746783677742,0.0569,102890.0,102880.0,2.68691851]
[1746783678052,0.104,102900.0,102890.0,0.194392]
[1746783678244,0.27754807,102920.0,102900.0,0.097181]
[1746783678459,0.42330217,102920.0,102910.0,0.77964702]
[1746783678640,0.42330217,102920.0,102910.0,0.85944915]
[1746783679243,0.42330217,102920.0,102910.0,0.95661671]
[1746783679546,0.3493279,102920.0,102910.0,0.95661671]
[1746783680049,0.3493279,102920.0,102910.0,0.96661671]
[1746783680348,0.3493279,102920.0,102910.0,0.84552389]
[1746783680650,0.3493279,102920.0,102910.0,0.96661671]
[1746783680849,0.7101279,102920.0,102910.0,0.17716756]
[1746783681048,0.7101279,102920.0,102910.0,0.09716756]
[1746783681343,0.99122072,102920.0,102910.0,0.09716756]
[1746783681949,0.8701279,102920.0,102910.0,0.09716756]
[1746783682355,0.99122072,102920.0,102910.0,0.09716756]
[1746783682650,0.99222072,102920.0,102910.0,0.09716756]
[1746783682847,0.8721279,102920.0,102910.0,0.29152176]
[1746783683145,0.7121279,102920.0,102910.0,0.29152176]
[1746783683743,0.7121279,102920.0,102910.0,0.30152176]
[1746783684853,0.1084,102920.0,102910.0,0.78341458]
[1746783685048,0.3027354,102920.0,102910.0,0.93121458]
[1746783685352,0.3027354,102920.0,102910.0,0.94121458]
[1746783685751,0.3007354,102920.0,102910.0,0.94121458]
[1746783685958,0.2450354,102920.0,102910.0,0.94121458]
[1746783686152,0.0507,102920.0,102910.0,0.94121458]
[1746783686350,0.2450354,102920.0,102910.0,0.94121458]
[1746783686653,0.2450354,102920.0,102910.0,1.12121458]
[1746783686850,0.0507,102920.0,102910.0,1.11121458]
[1746783687050,0.1082,102930.0,102920.0,0.1943354]
[1746783687252,0.0544,102930.0,102920.0,1.32442822]
[1746783687553,0.004,102930.0,102920.0,1.40898822]
[1746783687860,0.004,102930.0,102920.0,1.61615578]
[1746783688046,0.004,102930.0,102920.0,1.71615578]
[1746783688553,0.005,102930.0,102920.0,1.59506296]
[1746783688754,0.005,102930.0,102920.0,1.71615578]
[1746783688953,0.005,102930.0,102920.0,1.71815578]
[1746783689457,0.004,102930.0,102920.0,1.72015578]
[1746783689844,0.004,102930.0,102920.0,1.51559578]
[1746783690049,0.0509,102930.0,102920.0,1.62975578]
[1746783690348,0.2452165,102930.0,102920.0,1.00450296]
[1746783690547,0.3403165,102930.0,102920.0,1.00450296]
[1746783690749,0.3403165,102930.0,102920.0,0.64370296]
[1746783691054,0.7011165,102930.0,102920.0,0.54550296]
[1746783691262,0.7011165,102930.0,102920.0,0.35116756]
[1746783691547,0.3403165,102930.0,102920.0,0.45550296]
[1746783691753,0.7011165,102930.0,102920.0,0.31136756]
[1746783691953,0.7011165,102930.0,102920.0,0.26116756]
[1746783692347,0.7011165,102930.0,102920.0,0.25916756]
[1746783692551,0.7021165,102930.0,102920.0,0.25716756]
[1746783693251,0.7031165,102930.0,102920.0,0.25716756]
[1746783694157,0.82420932,102930.0,102920.0,0.25716756]
[1746783694352,0.94530214,102930.0,102920.0,0.09716756]
[1746783694557,0.1943542,102910.0,102900.0,0.1943723]
[1746783694854,0.5551542,102910.0,102900.0,1.84153042]
[1746783695054,0.7028542,102910.0,102900.0,1.84153042]
[1746783695351,0.82394702,102910.0,102900.0,0.14715812]
[1746783695548,0.82394702,102910.0,102900.0,0.34153122]
[1746783695754,0.82394702,102910.0,102900.0,0.34553122]
[1746783695961,0.7028542,102910.0,102900.0,0.34553122]
[1746783697055,0.7028542,102910.0,102900.0,0.15115812]
[1746783697250,0.7028542,102910.0,102900.0,0.34553122]
[1746783698254,0.7028542,102910.0,102900.0,0.15115812]
[1746783698460,0.82394702,102910.0,102900.0,0.10115812]
[1746783698752,0.82394702,102910.0,102900.0,0.09513254]
[1746783699258,0.98394702,102910.0,102900.0,0.09513254]
[1746783699753,0.8628542,102910.0,102900.0,0.09313254]
[1746783699963,0.98394702,102910.0,102900.0,0.09313254]
[1746783700362,0.8628542,102910.0,102900.0,0.28750564]
[1746783700547,0.98394702,102910.0,102900.0,0.28750564]
[1746783701157,0.98394702,102910.0,102900.0,0.09113254]
[1746783701348,0.98394702,102910.0,102900.0,0.28550564]
[1746783701545,0.98394702,102910.0,102900.0,0.09113254]
[1746783703255,0.98394702,102910.0,102900.0,0.28550564]
[1746783704861,0.98394702,102910.0,102900.0,0.09113254]
[1746783706160,0.8628542,102910.0,102900.0,0.09113254]
[1746783706356,0.8638542,102910.0,102900.0,0.09113254]
[1746783706956,0.98494702,102910.0,102900.0,0.09113254]
[1746783708268,0.98594702,102910.0,102900.0,0.09113254]
[1746783709661,0.194392,102890.0,102880.0,0.3336109]
[1746783709960,0.555192,102890.0,102880.0,0.4807879]
[1746783710153,0.698992,102890.0,102880.0,0.4807879]
[1746783710559,0.698992,102890.0,102880.0,0.238977]
[1746783710752,0.82008482,102890.0,102880.0,0.147177]
[1746783710948,0.82008482,102890.0,102880.0,0.097177]
[1746783711361,0.82008482,102890.0,102880.0,0.099177]
[1746783711956,0.82008482,102890.0,102880.0,0.111177]
[1746783715065,0.82008482,102890.0,102880.0,0.101177]
[1746783715975,0.698992,102890.0,102880.0,0.101177]
[1746783716165,0.98008482,102890.0,102880.0,0.101177]
[1746783717565,0.1944298,102870.0,102860.0,1.4666087]
[1746783717757,0.5552298,102870.0,102860.0,1.3201087]
[1746783717964,0.6945298,102870.0,102860.0,1.3201087]
[1746783718164,0.6945298,102870.0,102860.0,1.22285589]
[1746783718564,0.6945298,102870.0,102860.0,1.41730459]
[1746783718760,0.93671544,102870.0,102860.0,0.21719589]
[1746783718966,0.93671544,102870.0,102840.0,0.09618658]
[1746783718967,0.1944676,102850.0,102840.0,0.09618658]
[1746783719270,0.5552676,102850.0,102840.0,0.27618658]
[1746783719470,1.0104676,102850.0,102840.0,0.27618658]
[1746783719668,1.0104676,102850.0,102840.0,0.37340137]
[1746783720266,1.13156042,102850.0,102840.0,0.37340137]
[1746783720774,1.13256042,102850.0,102840.0,0.34910137]
[1746783720971,1.0114676,102850.0,102840.0,0.34910137]
[1746783721169,1.13256042,102850.0,102840.0,0.34910137]
[1746783721365,1.13156042,102850.0,102840.0,0.32810137]
[1746783721674,1.0124676,102850.0,102840.0,0.12020137]
[1746783721875,1.18196042,102850.0,102840.0,0.12020137]
[1746783722170,1.18396042,102850.0,102840.0,0.13820137]
[1746783723266,1.34296042,102850.0,102840.0,0.13220137]
[1746783723576,1.34096042,102850.0,102840.0,0.11320137]
[1746783723769,1.34196042,102850.0,102840.0,0.12620137]
[1746783723966,1.2208676,102850.0,102840.0,0.12620137]
[1746783724167,1.0608676,102850.0,102840.0,0.21780137]
[1746783724369,1.0608676,102850.0,102840.0,0.26780137]
[1746783724773,1.0608676,102850.0,102840.0,0.46228787]
[1746783724978,1.0150676,102850.0,102840.0,0.46228787]
[1746783725477,1.0150676,102850.0,102840.0,0.26780137]
[1746783725774,1.0150676,102850.0,102840.0,0.46228787]
[1746783725971,1.13616042,102850.0,102840.0,0.46228787]
[1746783726370,1.0150676,102850.0,102840.0,0.46228787]
[1746783727467,1.0150676,102850.0,102840.0,0.48228787]
[1746783727669,1.0150676,102850.0,102840.0,0.46228787]
[1746783728476,1.0150676,102850.0,102840.0,0.26780137]
[1746783728877,1.13616042,102850.0,102840.0,0.26780137]
[1746783729077,1.13616042,102850.0,102840.0,0.21780137]
[1746783729667,0.1945244,102820.0,102810.0,0.91634314]
[1746783729878,0.1945244,102820.0,102810.0,1.60121394]
[1746783730175,0.1945244,102820.0,102810.0,1.50394314]
[1746783730375,0.36171722,102820.0,102810.0,1.40664144]
[1746783730671,0.6014244,102820.0,102810.0,1.55118474]
[1746783730878,0.2406244,102820.0,102810.0,1.55118474]
[1746783731078,0.2872244,102820.0,102810.0,1.59948474]
[1746783731270,0.1945244,102820.0,102810.0,1.72057756]
[1746783731581,0.002,102820.0,102810.0,1.80957756]
[1746783731775,0.004,102820.0,102810.0,1.81857756]
[1746783732166,0.004,102820.0,102810.0,1.74857756]
[1746783732374,0.6525143,102850.0,102840.0,0.1944865]
[1746783732676,0.6984143,102850.0,102840.0,0.2644865]
[1746783732880,0.7437143,102850.0,102840.0,0.4012865]
[1746783733083,0.7437143,102850.0,102840.0,0.49854857]
[1746783733780,0.7447143,102850.0,102840.0,0.49854857]
[1746783733979,0.7447143,102850.0,102840.0,0.30406207]
[1746783734180,0.7447143,102850.0,102840.0,0.49854857]
[1746783734679,0.7457143,102850.0,102840.0,0.50854857]
[1746783736276,0.5572676,102850.0,102840.0,0.62964139]
[1746783736479,0.3628,102850.0,102840.0,0.71073421]
[1746783736780,0.3628,102850.0,102840.0,1.45044139]
[1746783736781,0.002,102850.0,102840.0,1.45044139]
[1746783736975,0.002,102850.0,102840.0,1.66876621]
[1746783737677,0.1944307,102870.0,102860.0,0.1944487]
[1746783737882,0.1944307,102870.0,102860.0,0.55554152]
[1746783738080,0.1944307,102870.0,102860.0,0.69624152]
[1746783738277,0.1944307,102870.0,102860.0,2.29347522]
[1746783738672,0.1944307,102870.0,102860.0,2.65427522]
[1746783738877,0.003,102870.0,102860.0,2.13447522]
[1746783739083,0.003,102870.0,102860.0,2.86527522]
[1746783739288,0.1974298,102870.0,102860.0,2.86527522]
[1746783739582,0.1974298,102870.0,102860.0,2.65527522]
[1746783740089,0.2004298,102870.0,102860.0,2.65627522]
[1746783741085,0.2004298,102870.0,102860.0,2.29547522]
[1746783741281,0.2004298,102870.0,102860.0,2.1743824]
[1746783741480,0.2444298,102870.0,102860.0,2.1743824]
[1746783741677,0.2896298,102870.0,102860.0,2.18417759]
[1746783741880,0.2896298,102870.0,102860.0,0.61417759]
[1746783742182,0.2456298,102870.0,102860.0,0.61417759]
[1746783742378,0.2456298,102870.0,102860.0,1.09607041]
[1746783742577,0.2456298,102870.0,102860.0,0.73527041]
[1746783742887,0.2456298,102870.0,102860.0,0.61417759]
[1746783743186,0.6941298,102870.0,102860.0,0.61417759]
[1746783743382,0.3333298,102870.0,102860.0,0.61417759]
[1746783743587,0.6941298,102870.0,102860.0,0.61417759]
[1746783744490,0.6941298,102870.0,102860.0,0.5443824]
[1746783745285,0.6941298,102870.0,102860.0,0.4981824]
[1746783745786,0.81522262,102870.0,102860.0,0.4981824]
[1746783745998,0.6941298,102870.0,102860.0,0.4981824]
[1746783746187,0.6941298,102870.0,102860.0,0.3037337]
[1746783746379,0.6941298,102870.0,102860.0,0.2092337]
[1746783746380,0.81522262,102870.0,102860.0,0.2092337]
[1746783747185,0.97522262,102870.0,102860.0,0.002]
[1746783747586,0.97522262,102870.0,102860.0,0.1964487]
[1746783747890,0.97522262,102870.0,102860.0,0.002]
[1746783748186,0.97522262,102870.0,102860.0,0.1964487]
[1746783748495,0.97522262,102870.0,102860.0,0.002]
[1746783748693,0.97522262,102870.0,102860.0,0.1964487]
[1746783749596,0.97522262,102870.0,102860.0,0.002]
[1746783750281,0.97522262,102870.0,102860.0,0.1964487]
[1746783750482,0.97522262,102870.0,102860.0,0.002]
[1746783750686,0.97522262,102870.0,102860.0,0.09921479]
[1746783751094,0.81522262,102870.0,102860.0,0.09921479]
[1746783751294,0.81522262,102870.0,102860.0,0.15921479]
[1746783752392,0.1944865,102840.0,102830.0,0.6525438]
[1746783752597,0.1944865,102840.0,102830.0,0.8942438]
[1746783752788,0.3281865,102840.0,102830.0,0.8942438]
[1746783752988,0.2840865,102840.0,102830.0,2.49145859]
[1746783753510,0.2860865,102840.0,102830.0,2.50145859]
[1746783753797,0.2860865,102840.0,102830.0,1.00145859]
[1746783754290,0.2426865,102840.0,102830.0,1.12255141]
[1746783754791,0.2446865,102840.0,102830.0,1.08355141]
[1746783755091,0.2446865,102840.0,102830.0,0.73275141]
[1746783755397,0.2446865,102840.0,102830.0,1.09355141]
[1746783755588,0.2446865,102840.0,102830.0,0.74239112]
[1746783755789,0.2893865,102840.0,102830.0,1.10319112]
[1746783755983,0.2893865,102840.0,102830.0,0.9820983]
[1746783756196,0.2893865,102840.0,102830.0,2.4820983]
[1746783756402,0.2893865,102840.0,102830.0,2.86319112]
[1746783756403,0.004,102840.0,102830.0,2.86319112]
[1746783756593,0.004,102840.0,102830.0,3.15043512]
[1746783757495,0.004,102840.0,102830.0,3.05319112]
[1746783758401,0.004,102840.0,102830.0,3.15043512]
[1746783759599,0.004,102840.0,102830.0,3.25043512]
[1746783760300,0.004,102840.0,102830.0,3.25625349]
[1746783761493,0.2404487,102860.0,102850.0,0.1944676]
[1746783761703,0.2404487,102860.0,102850.0,0.67137879]
[1746783761886,0.2404487,102860.0,102850.0,0.76107879]
[1746783762089,0.2404487,102860.0,102850.0,1.21913942]
[1746783762499,0.2404487,102860.0,102850.0,0.85833942]
[1746783762690,0.2404487,102860.0,102850.0,2.2372466]
[1746783762691,0.2414487,102860.0,102850.0,2.2372466]
[1746783762893,0.2851487,102860.0,102850.0,2.2372466]
[1746783763090,0.2861487,102860.0,102850.0,2.2372466]
[1746783763289,0.2861487,102860.0,102850.0,2.23141075]
[1746783763495,0.2861487,102860.0,102850.0,2.14171075]
[1746783763696,0.2861487,102860.0,102850.0,0.64171075]
[1746783763897,0.76804152,102860.0,102850.0,0.09724315]
[1746783764092,0.76804152,102860.0,102840.0,0.0454]
[1746783764093,0.1944865,102840.0,102830.0,0.39198581]
[1746783764300,0.1944865,102840.0,102830.0,0.53013571]
[1746783764490,0.1944865,102840.0,102830.0,0.53014511]
[1746783764491,0.77137932,102840.0,102830.0,0.53014511]
[1746783764694,0.6502865,102840.0,102830.0,0.62738826]
[1746783765201,0.2914865,102840.0,102830.0,0.63938826]
[1746783765701,0.2914865,102840.0,102830.0,1.00018826]
[1746783765903,0.2914865,102840.0,102830.0,0.59508826]
[1746783766600,0.2934865,102840.0,102830.0,0.60608826]
[1746783766800,0.6542865,102840.0,102830.0,0.60608826]
[1746783767001,0.2934865,102840.0,102830.0,0.60608826]
[1746783767799,0.2934865,102840.0,102830.0,0.72718108]
[1746783768005,0.2456865,102840.0,102830.0,0.94688826]
[1746783768193,0.2456865,102840.0,102830.0,0.70718108]
[1746783768398,0.2456865,102840.0,102830.0,1.09798108]
[1746783768699,0.2456865,102840.0,102830.0,1.21798108]
[1746783769604,0.1456865,102840.0,102830.0,1.09688826]
[1746783769802,0.1456865,102840.0,102830.0,1.21798108]
[1746783770795,0.1456865,102840.0,102830.0,1.12798108]
[1746783772212,0.1456865,102840.0,102830.0,1.00688826]
[1746783772406,0.1456865,102840.0,102830.0,1.12798108]
[1746783774602,0.1456865,102840.0,102830.0,0.64608826]
[1746783774799,0.5526865,102840.0,102830.0,0.64608826]
[1746783775209,0.5526865,102840.0,102830.0,0.45158286]
[1746783775410,0.5526865,102840.0,102830.0,0.64608826]
[1746783776825,0.5526865,102840.0,102830.0,0.45158286]
[1746783777122,0.67377932,102840.0,102830.0,0.25024315]
[1746783778115,0.67377932,102840.0,102830.0,0.12024315]
[1746783779118,0.83377932,102840.0,102830.0,0.12024315]
[1746783779524,0.83377932,102840.0,102830.0,0.31474855]
[1746783780124,0.83377932,102840.0,102830.0,0.12024315]
[1746783780323,0.83377932,102840.0,102830.0,0.31474855]
[1746783780727,0.83377932,102840.0,102830.0,0.12024315]
[1746783780918,0.7126865,102840.0,102830.0,0.12024315]
[1746783781117,0.83377932,102840.0,102830.0,0.31474855]
[1746783781324,0.83377932,102840.0,102830.0,0.12607119]
[1746783781725,0.7126865,102840.0,102830.0,0.12607119]
[1746783781926,0.3518865,102840.0,102830.0,0.34057659]
[1746783782114,0.83377932,102840.0,102830.0,0.14607119]
[1746783782722,0.1945244,102820.0,102810.0,0.00398774]
[1746783782916,1.03721722,102820.0,102810.0,4e-08]
[1746783783118,1.28551722,102820.0,102810.0,0.09724319]
[1746783783717,1.28551722,102820.0,102810.0,0.11199811]
[1746783783925,1.28551722,102820.0,102810.0,0.15199811]
[1746783784129,1.28551722,102820.0,102810.0,0.33178649]
[1746783784527,1.28751722,102820.0,102810.0,0.10924319]
[1746783784930,1.28751722,102820.0,102810.0,0.30378649]
[1746783785129,1.28951722,102820.0,102810.0,0.12406544]
[1746783786818,1.36349149,102820.0,102810.0,0.02682229]
[1746783787024,0.0486375,102810.0,102780.0,0.00544822]
[1746783787219,0.67647392,102790.0,102780.0,0.00544822]
[1746783787625,0.81827392,102790.0,102780.0,0.29732931]
[1746783787820,0.81827392,102790.0,102780.0,0.10272921]
[1746783788226,0.91556592,102790.0,102780.0,0.00398891]
[1746783788934,0.91856592,102790.0,102780.0,0.00398891]
[1746783789235,1.07856592,102790.0,102780.0,0.00398891]
[1746783789628,1.07756592,102790.0,102780.0,0.00398891]
[1746783790029,0.8611811,102790.0,102780.0,0.19858901]
[1746783790228,0.98227392,102790.0,102780.0,0.29587947]
[1746783790838,0.98227392,102790.0,102780.0,0.31587947]
[1746783791137,0.82227392,102790.0,102780.0,0.31587947]
[1746783791335,0.82227392,102790.0,102780.0,0.12127937]
[1746783791638,0.7011811,102790.0,102780.0,0.31587947]
[1746783791839,0.7011811,102790.0,102780.0,0.40857947]
[1746783793935,0.004,102790.0,102780.0,1.31047229]
[1746783794136,0.004,102790.0,102780.0,1.45047229]
[1746783794334,0.09820118,102810.0,102800.0,0.1945622]
[1746783794641,0.0488,102810.0,102800.0,0.81645502]
[1746783794836,0.2433349,102820.0,102810.0,0.1945433]
[1746783795039,0.2433349,102820.0,102810.0,0.55919658]
[1746783795543,0.79657338,102830.0,102820.0,0.1945244]
[1746783795836,0.74811618,102830.0,102820.0,0.61084135]
[1746783796038,0.70231618,102830.0,102820.0,0.48974853]
[1746783796234,0.70231618,102830.0,102820.0,0.5870106]
[1746783796936,0.34751618,102830.0,102820.0,0.5870106]
[1746783797946,0.263315,102830.0,102820.0,0.5870106]
[1746783798938,0.263315,102830.0,102820.0,0.70810342]
[1746783799139,0.263315,102830.0,102820.0,0.72267595]
[1746783799440,0.263315,102830.0,102820.0,0.60158313]
[1746783799641,0.624115,102830.0,102820.0,0.60158313]
[1746783799946,0.263315,102830.0,102820.0,0.60158313]
[1746783800139,0.624115,102830.0,102820.0,0.60158313]
[1746783800536,0.263315,102830.0,102820.0,0.60158313]
[1746783800736,0.263315,102830.0,102820.0,0.58694692]
[1746783800946,0.263315,102830.0,102820.0,0.58684325]
[1746783801942,0.263315,102830.0,102820.0,0.70793607]
[1746783802254,0.263315,102830.0,102820.0,1.06873607]
[1746783802749,0.2633054,102830.0,102820.0,1.06873607]
[1746783803541,0.2633054,102830.0,102820.0,0.94764325]
[1746783803741,0.2633054,102830.0,102820.0,1.06873607]
[1746783804149,0.2633054,102830.0,102820.0,0.70793607]
[1746783804948,0.2633054,102830.0,102820.0,0.58684325]
[1746783805149,0.0688,102830.0,102820.0,0.94764325]
[1746783805355,0.2633054,102830.0,102820.0,0.70793607]
[1746783806040,0.0688,102830.0,102820.0,0.70793607]
[1746783806242,0.2633054,102830.0,102820.0,1.06860815]
[1746783806941,0.2633054,102830.0,102820.0,0.70780815]
[1746783808047,0.2633054,102830.0,102820.0,0.70779164]
[1746783808950,0.02,102830.0,102820.0,1.75449164]
[1746783809150,0.02,102830.0,102820.0,1.98174364]
[1746783809541,0.02,102830.0,102820.0,3.48174364]
[1746783811457,0.02,102830.0,102820.0,3.38449164]
[1746783811640,0.2145054,102830.0,102820.0,3.1844286]
[1746783811845,0.2145054,102830.0,102820.0,1.45333578]
[1746783812046,0.2939054,102830.0,102820.0,1.45333578]
[1746783812250,0.2939054,102830.0,102820.0,1.03743578]
[1746783812450,0.2939054,102830.0,102820.0,0.67663578]
[1746783812748,0.6547054,102830.0,102820.0,0.67048647]
[1746783812955,0.77579822,102830.0,102820.0,0.29726207]
[1746783813252,0.6547054,102830.0,102820.0,0.29726207]
[1746783813452,0.77579822,102830.0,102820.0,0.29726207]
[1746783815849,0.77579822,102830.0,102820.0,0.49178647]
[1746783817055,0.1945433,102810.0,102800.0,0.00989546]
[1746783817260,0.93997182,102810.0,102790.0,0.3754507]
[1746783817455,0.2777622,102800.0,102790.0,0.382795]
[1746783817651,0.2777622,102800.0,102790.0,1.03321818]
[1746783817856,0.2379622,102800.0,102790.0,1.03321818]
[1746783818047,0.6385622,102800.0,102790.0,0.50268106]
[1746783818559,0.6385622,102800.0,102790.0,0.49292696]
[1746783818752,0.6385622,102800.0,102790.0,0.20107626]
[1746783818960,0.6780622,102800.0,102790.0,0.39565736]
[1746783819155,0.6800622,102800.0,102790.0,0.20107626]
[1746783819353,0.6800622,102800.0,102790.0,0.39565736]
[1746783819857,0.6800622,102800.0,102790.0,0.20107626]
[1746783820059,0.6820622,102800.0,102790.0,0.20107626]
[1746783820462,0.6820622,102800.0,102790.0,0.39565736]
[1746783820954,0.6820622,102800.0,102790.0,0.20107626]
[1746783822653,0.6820622,102800.0,102790.0,0.51675018]
[1746783822861,0.2817622,102800.0,102790.0,0.53741053]
[1746783823060,0.2419622,102800.0,102790.0,0.89821053]
[1746783823360,0.2419622,102800.0,102790.0,1.23351489]
[1746783823855,0.2419622,102800.0,102790.0,0.87271489]
[1746783824260,0.2419622,102800.0,102790.0,1.23351489]
[1746783824557,0.2419622,102800.0,102790.0,1.24826343]
[1746783825559,0.2419622,102800.0,102790.0,1.12717061]
[1746783825863,0.2419622,102800.0,102790.0,0.88746343]
[1746783826161,0.2815622,102800.0,102790.0,0.88746343]
[1746783826561,0.2815622,102800.0,102790.0,0.76637061]
[1746783826761,0.6423622,102800.0,102790.0,0.65637061]
[1746783826954,0.3229622,102800.0,102790.0,0.65637061]
[1746783827156,0.3229622,102800.0,102790.0,0.64162207]
[1746783827560,0.3229622,102800.0,102790.0,0.63565736]
[1746783828462,0.3229622,102800.0,102790.0,0.64140254]
[1746783828664,0.3229622,102800.0,102790.0,0.76249536]
[1746783829358,0.3229622,102800.0,102790.0,0.75675018]
[1746783829564,0.3229622,102800.0,102790.0,0.7624999]
[1746783829865,0.3229622,102800.0,102790.0,0.64140708]
[1746783830363,0.3229622,102800.0,102790.0,0.64141525]
[1746783830563,0.3229622,102800.0,102790.0,0.63565736]
[1746783830864,0.3229622,102800.0,102790.0,0.65018073]
[1746783832269,0.3229622,102800.0,102790.0,0.77127355]
[1746783832567,0.3229622,102800.0,102790.0,0.65018073]
[1746783832757,0.3229622,102800.0,102790.0,0.77127355]
[1746783833362,0.3229622,102800.0,102790.0,1.13207355]
[1746783833770,0.3229622,102800.0,102790.0,0.77127355]
[1746783834062,0.6837622,102800.0,102790.0,0.65018073]
[1746783834260,0.3229622,102800.0,102790.0,0.77127355]
[1746783834967,0.3229622,102800.0,102790.0,0.65018073]
[1746783836963,0.3229622,102800.0,102790.0,0.45559963]
[1746783837268,0.6837622,102800.0,102790.0,0.65018073]
[1746783837866,0.6837622,102800.0,102790.0,0.77127355]
[1746783839468,0.6837622,102800.0,102790.0,0.65018073]
[1746783839669,0.6837622,102800.0,102790.0,0.45559963]
[1746783839868,0.6837622,102800.0,102790.0,0.65018073]
[1746783840470,0.6827622,102800.0,102790.0,0.65018073]
[1746783841171,0.6817622,102800.0,102790.0,0.65018073]
[1746783841365,0.6887622,102800.0,102790.0,0.65018073]
[1746783841871,0.6917622,102800.0,102790.0,0.65018073]
[1746783842170,0.6917622,102800.0,102790.0,0.45559963]
[1746783842372,0.6917622,102800.0,102790.0,0.41559963]
[1746783842772,0.6917622,102800.0,102790.0,0.37329963]
[1746783842970,0.81285502,102800.0,102790.0,0.33179963]
[1746783843171,0.81285502,102800.0,102790.0,0.01452337]
[1746783843369,0.1945811,102790.0,102780.0,0.00398891]
[1746783843560,0.75387392,102790.0,102780.0,0.00398891]
[1746783843767,0.75387392,102790.0,102780.0,0.1012699]
[1746783844266,1.26116592,102790.0,102780.0,0.00398891]
[1746783844462,1.27084466,102790.0,102780.0,0.00398891]
[1746783844666,1.02284466,102790.0,102780.0,0.00398891]
[1746783844872,0.90175184,102790.0,102780.0,0.00398891]
[1746783845074,1.02284466,102790.0,102780.0,0.00398891]
[1746783845474,1.14393748,102790.0,102780.0,1e-08]
[1746783845675,1.14393748,102790.0,102780.0,8e-08]
[1746783845970,1.02284466,102790.0,102780.0,8e-08]
[1746783847772,1.21037477,102790.0,102780.0,8e-08]
[1746783848167,0.3405779,102780.0,102770.0,0.194613]
[1746783848371,0.7781779,102780.0,102770.0,0.231813]
[1746783848571,0.7781779,102780.0,102770.0,0.269813]
[1746783848775,0.7781779,102780.0,102770.0,0.36710346]
[1746783848776,0.8167779,102780.0,102770.0,0.36710346]
[1746783849076,0.93787072,102780.0,102770.0,0.13449046]
[1746783849382,0.93987072,102780.0,102770.0,0.09729046]
[1746783849785,0.194619,102770.0,102760.0,0.09010525]
[1746783850085,0.75381182,102770.0,102760.0,0.11220517]
[1746783850279,0.75381182,102770.0,102760.0,0.09729992]
[1746783850589,0.1946379,102760.0,102750.0,0.00399008]
[1746783850771,0.79243072,102760.0,102750.0,0.00399008]
[1746783850975,0.79243072,102760.0,102750.0,0.10129947]
[1746783851376,0.6713379,102760.0,102750.0,0.29595637]
[1746783851577,0.6713379,102760.0,102750.0,0.41095637]
[1746783851777,0.6713379,102760.0,102750.0,0.42095637]
[1746783852273,0.6743379,102760.0,102750.0,0.22629947]
[1746783852576,0.6743379,102760.0,102750.0,0.42095637]
[1746783852784,0.6773379,102760.0,102750.0,0.43546481]
[1746783853587,0.6773379,102760.0,102750.0,0.20390791]
[1746783853779,0.6773379,102760.0,102750.0,0.12580791]
[1746783854279,0.3165379,102760.0,102750.0,0.51765763]
[1746783854480,0.2391379,102760.0,102750.0,0.52765763]
[1746783854682,0.2391379,102760.0,102750.0,0.40656481]
[1746783854877,0.0445,102760.0,102750.0,0.52765763]
[1746783855078,0.006,102760.0,102750.0,1.95545045]
[1746783855284,0.006,102760.0,102750.0,2.30277044]
[1746783855482,0.11246111,102780.0,102770.0,0.194619]
[1746783855683,0.26866121,102780.0,102770.0,0.61571182]
[1746783855881,0.26866121,102780.0,102770.0,0.78981182]
[1746783856082,0.26866121,102780.0,102770.0,0.76603786]
[1746783856389,0.26866121,102780.0,102770.0,0.88713068]
[1746783856592,0.29534825,102780.0,102770.0,0.88713068]
[1746783856983,0.29734825,102780.0,102770.0,1.24793068]
[1746783857484,0.10274815,102780.0,102770.0,1.24793068]
[1746783857686,0.10274815,102780.0,102770.0,1.66383068]
[1746783857889,0.10274815,102780.0,102770.0,2.1322235]
[1746783858090,0.12343519,102790.0,102780.0,0.1946001]
[1746783858292,0.31801629,102790.0,102780.0,1.80058574]
[1746783858489,0.31801629,102790.0,102780.0,1.39229292]
[1746783858688,0.31801629,102790.0,102780.0,1.85039284]
[1746783859185,0.31901629,102790.0,102780.0,1.85039284]
[1746783859393,0.12443519,102790.0,102780.0,1.97148566]
[1746783859594,0.12543519,102790.0,102780.0,2.07477766]
[1746783860091,0.002,102790.0,102780.0,2.32477766]